bitfinex-derivatives/quotes_SOLF0:USTF0_20220109
["timestamp","ask_amount","ask_price","bid_price","bid_amount"]
[1641694061419,27.66479,142.75,142.7,4.0]
[1641694061619,27.66479,142.75,142.67,8.666]
[1641694062020,69.0316,142.77,142.68,4.0]
[1641694062420,69.0316,142.77,142.72,4.0]
[1641694062720,27.66479,142.78,142.72,4.0]
[1641694064522,27.66479,142.78,142.7,4.0]
[1641694064722,33.39479,142.78,142.68,4.0]
[1641694064922,33.39479,142.78,142.66,19.52472407]
[1641694065125,102.17699,142.78,142.66,19.52472407]
[1641694065324,27.66479,142.7,142.66,15.52472407]
[1641694065528,33.80179,142.7,142.65,4.0]
[1641694065725,33.80179,142.7,142.64,4.0]
[1641694066527,33.80179,142.7,142.6,17.68942768]
[1641694066725,33.80179,142.7,142.6,33.20067118]
[1641694068628,33.80179,142.7,142.6,17.68942768]
[1641694070329,33.80179,142.7,142.61,4.0]
[1641694070529,33.80179,142.7,142.61,2.6932521]
[1641694070729,1.752,142.69,142.61,2.6932521]
[1641694071532,1.752,142.69,142.59,4.0]
[1641694071732,27.66479,142.65,142.59,4.0]
[1641694072133,27.66479,142.65,142.58,2.6932521]
[1641694072333,1.752,142.69,142.63,4.0]
[1641694072534,27.66479,142.7,142.6,2.6932521]
[1641694072734,27.66479,142.7,142.64,4.0]
[1641694072933,27.66479,142.7,142.64,7.595]
[1641694073134,27.66479,142.7,142.66,4.0]
[1641694073537,27.66479,142.7,142.62,4.0]
[1641694073737,27.66479,142.67,142.6,2.6932521]
[1641694073939,34.95779,142.67,142.6,6.6932521]
[1641694074138,34.95779,142.67,142.63,2.6932521]
[1641694074940,34.95779,142.67,142.59,4.0]
[1641694075841,62.62258,142.67,142.6,2.6932521]
[1641694076543,69.6361864,142.67,142.6,5.21e-05]
[1641694076747,1.752,142.66,142.55,15.47524751]
[1641694076942,7.01532849,142.64,142.55,15.47524751]
[1641694077142,1.752,142.63,142.55,15.47524751]
[1641694077943,27.66479,142.58,142.55,15.47524751]
[1641694078143,27.66479,142.6,142.54,4.0]
[1641694078343,27.66479,142.6,142.53,27.66479]
[1641694079443,27.66479,142.6,142.52,4.0]
[1641694080146,27.66479,142.57,142.51,4.0]
[1641694080344,35.00479,142.57,142.51,4.0]
[1641694081043,34.32479,142.6,142.54,4.0]
[1641694081044,27.66479,142.6,142.54,4.0]
[1641694081244,27.66479,142.6,142.54,10.533]
[1641694081445,27.66479,142.6,142.54,6.533]
[1641694082045,27.66479,142.6,142.56,4.0]
[1641694082247,15.71707826,142.6,142.54,6.533]
[1641694082746,15.71707826,142.6,142.54,16.98673473]
[1641694083247,15.71707826,142.6,142.57,4.0]
[1641694083450,15.71707826,142.6,142.57,9.622]
[1641694083848,27.66479,142.63,142.57,9.622]
[1641694084849,27.66479,142.63,142.57,5.622]
[1641694085048,27.66479,142.63,142.59,4.0]
[1641694085450,27.66479,142.63,142.6,4.0]
[1641694085650,27.66479,142.66,142.6,11.562]
[1641694085850,27.66479,142.66,142.6,7.562]
[1641694086051,55.32958,142.66,142.6,7.562]
[1641694086450,1.752,142.65,142.6,7.562]
[1641694086649,1.752,142.65,142.55,10.45373473]
[1641694086851,55.32958,142.66,142.55,10.45373473]
[1641694087252,55.32958,142.66,142.57,4.0]
[1641694087451,1.752,142.65,142.57,4.0]
[1641694088351,1.752,142.65,142.59,4.0]
[1641694088554,1.752,142.65,142.59,5.704]
[1641694088754,1.752,142.65,142.59,9.704]
[1641694089052,1.752,142.65,142.59,5.704]
[1641694089657,55.32958,142.66,142.59,5.704]
[1641694090257,55.32958,142.66,142.6,4.0]
[1641694090459,55.32958,142.66,142.57,4.0]
[1641694090659,55.32958,142.66,142.54,32.47571948]
[1641694090858,55.32958,142.66,142.57,4.0]
[1641694091058,55.32958,142.66,142.54,25.94271948]
[1641694091259,1.752,142.65,142.54,25.94271948]
[1641694091559,7.01508243,142.64,142.54,14.45373473]
[1641694091759,1.752,142.63,142.54,14.45373473]
[1641694091958,1.752,142.63,142.55,4.0]
[1641694092361,27.66479,142.61,142.55,4.0]
[1641694092759,27.66479,142.61,142.52,36.28479]
[1641694092958,27.66479,142.61,142.56,4.0]
[1641694093559,27.66479,142.61,142.53,25.95678469]
[1641694093759,27.66479,142.61,142.53,29.95678469]
[1641694094359,27.66479,142.61,142.53,14.45373473]
[1641694094860,27.66479,142.61,142.53,10.45373473]
[1641694095259,27.66479,142.61,142.52,7.01336045]
[1641694095461,27.66479,142.61,142.54,4.0]
[1641694097965,27.66479,142.61,142.51,25.95678469]
[1641694098466,27.66479,142.61,142.54,4.0]
[1641694099267,27.66479,142.61,142.51,25.95678469]
[1641694099467,27.66479,142.61,142.52,4.0]
[1641694100469,27.66479,142.61,142.51,25.95678469]
[1641694100671,27.66479,142.58,142.51,25.95678469]
[1641694100869,27.66479,142.58,142.52,4.0]
[1641694103874,29.41679,142.61,142.5,14.45373473]
[1641694104074,1.752,142.64,142.6,4.0]
[1641694104273,1.752,142.67,142.6,7.021]
[1641694104476,1.752,142.67,142.61,4.0]
[1641694104674,109.36699224,142.68,142.61,4.0]
[1641694104878,109.36699224,142.68,142.6,5.021]
[1641694105277,94.66719,142.68,142.6,5.021]
[1641694106580,27.66479,142.68,142.6,5.021]
[1641694109387,27.66479,142.68,142.59,10.45373473]
[1641694110286,27.66479,142.68,142.59,17.46340808]
[1641694110886,4.0,142.65,142.59,10.45373473]
[1641694111087,27.66479,142.68,142.59,10.45373473]
[1641694111286,31.66479,142.68,142.58,38.11852473]
[1641694111887,4.0,142.67,142.58,38.11852473]
[1641694112286,31.66479,142.68,142.58,38.11852473]
[1641694112488,1.752,142.67,142.58,38.11852473]
[1641694113790,27.66479,142.68,142.58,38.11852473]
[1641694114191,27.66479,142.68,142.58,39.87052473]
[1641694114393,27.66479,142.68,142.58,42.11852473]
[1641694114692,27.66479,142.68,142.58,38.11852473]
[1641694114891,27.66479,142.68,142.58,42.11852473]
[1641694115093,27.66479,142.68,142.59,10.45373473]
[1641694115293,27.66479,142.68,142.59,19.26473473]
[1641694115695,27.66479,142.68,142.6,7.00918203]
[1641694115897,6.0,142.67,142.6,7.00918203]
[1641694117296,6.0,142.67,142.61,2.70453829]
[1641694117496,4.0,142.66,142.61,2.70453829]
[1641694117696,9.854,142.66,142.61,2.70453829]
[1641694117900,5.854,142.66,142.61,2.70453829]
[1641694118098,4.0,142.64,142.59,25.95678469]
[1641694118300,1.752,142.63,142.59,25.95678469]
[1641694118503,4.0,142.62,142.59,25.95678469]
[1641694118902,4.0,142.62,142.52,93.21698469]
[1641694119099,27.66479,142.6,142.52,25.95678469]
[1641694119300,35.15079,142.6,142.52,25.95678469]
[1641694119899,35.15079,142.6,142.5,53.62157469]
[1641694120101,36.90279,142.6,142.5,53.62157469]
[1641694120800,4.0,142.59,142.5,53.62157469]
[1641694121402,62.81558,142.6,142.5,53.62157469]
[1641694121802,4.0,142.59,142.5,53.62157469]
[1641694122404,4.0,142.53,142.5,25.95678469]
[1641694122602,6.377,142.53,142.5,25.95678469]
[1641694123203,34.04179,142.53,142.5,25.95678469]
[1641694123607,34.04179,142.53,142.5,15.50304996]
[1641694123905,34.04179,142.53,142.45,25.95678469]
[1641694124908,34.04179,142.53,142.45,10.45373473]
[1641694126010,34.04179,142.53,142.45,14.45373473]
[1641694126212,34.04179,142.53,142.47,4.0]
[1641694126213,6.377,142.53,142.47,4.0]
[1641694126411,1.754,142.59,142.47,4.0]
[1641694126612,8.77105143,142.6,142.47,4.0]
[1641694126812,8.77105143,142.6,142.45,21.82350989]
[1641694127012,4.0,142.59,142.45,37.32655985]
[1641694127212,27.66479,142.56,142.47,27.66479]
[1641694127812,27.66479,142.56,142.47,38.11852473]
[1641694128513,31.66479,142.56,142.47,38.11852473]
[1641694128715,4.0,142.55,142.47,27.66479]
[1641694128913,4.0,142.55,142.46,10.45373473]
[1641694129113,14.332,142.55,142.46,10.45373473]
[1641694129313,27.66479,142.52,142.46,10.45373473]
[1641694129514,35.34579,142.52,142.46,10.45373473]
[1641694130516,35.34579,142.52,142.45,10.45373473]
[1641694131217,7.681,142.52,142.45,10.45373473]
[1641694131414,100.57919,142.56,142.45,10.45373473]
[1641694131615,98.82519,142.56,142.45,17.03573473]
[1641694132217,98.82519,142.56,142.45,32.53878469]
[1641694132417,94.82519,142.56,142.45,32.53878469]
[1641694132617,1.754,142.55,142.45,32.53878469]
[1641694133218,27.66479,142.53,142.45,32.53878469]
[1641694134423,1.754,142.55,142.47,7.01582068]
[1641694134621,27.66479,142.56,142.47,7.01582068]
[1641694134821,6.0,142.52,142.47,7.01582068]
[1641694135522,6.0,142.52,142.47,34.68061068]
[1641694136323,6.0,142.52,142.48,10.45373473]
[1641694138024,6.0,142.52,142.47,27.66479]
[1641694138225,6.0,142.52,142.47,34.68061068]
[1641694138826,6.0,142.52,142.48,10.45373473]
[1641694139026,6.0,142.52,142.48,15.88973473]
[1641694139726,6.0,142.52,142.48,31.39278469]
[1641694141029,6.0,142.52,142.48,35.39278469]
[1641694141230,6.0,142.52,142.48,31.39278469]
[1641694141627,6.0,142.52,142.48,35.39278469]
[1641694142030,69.7344,142.59,142.48,31.39278469]
[1641694142329,1.752,142.62,142.53,11.01286861]
[1641694142531,136.5342,142.67,142.53,16.50486861]
[1641694142727,204.1592,142.67,142.53,16.50486861]
[1641694142928,4.0,142.66,142.54,4.0]
[1641694143128,4.0,142.66,142.53,12.50486861]
[1641694143328,4.0,142.65,142.53,12.50486861]
[1641694143729,27.66479,142.63,142.53,40.16965861]
[1641694144831,27.66479,142.65,142.53,40.16965861]
[1641694145031,27.66479,142.65,142.58,4.0]
[1641694145236,67.6358,142.71,142.59,11.00991904]
[1641694145433,135.2101,142.71,142.59,12.76191904]
[1641694145632,67.5743,142.71,142.63,34.67274403]
[1641694145832,67.5743,142.71,142.63,41.26074403]
[1641694147436,4.0,142.68,142.64,10.45373473]
[1641694147638,27.66479,142.68,142.64,10.45373473]
[1641694148540,67.5743,142.71,142.61,10.45373473]
[1641694148738,67.5743,142.71,142.61,18.99473473]
[1641694148940,67.5743,142.71,142.63,7.00770848]
[1641694149739,67.5743,142.71,142.63,34.67249848]
[1641694150342,163.31589,142.74,142.63,34.67249848]
[1641694151240,94.89939,142.74,142.63,34.67249848]
[1641694151445,94.89939,142.74,142.63,38.67249848]
[1641694151741,65.8754,142.76,142.68,27.66479]
[1641694151944,27.66479,142.78,142.68,36.17279]
[1641694154344,4.0,142.75,142.68,36.17279]
[1641694154644,4.0,142.74,142.65,1.75]
[1641694154844,12.751,142.74,142.63,7.00795403]
[1641694155446,4.0,142.73,142.63,7.00795403]
[1641694155845,27.66479,142.72,142.63,7.00795403]
[1641694158454,27.66479,142.72,142.64,2.68685665]
[1641694159054,8.425,142.77,142.64,2.68685665]
[1641694159256,27.66479,142.78,142.64,2.68685665]
[1641694159455,27.66479,142.78,142.64,6.68685665]
[1641694159654,27.66479,142.78,142.64,12.02285665]
[1641694159854,55.32958,142.78,142.66,7.00623555]
[1641694160455,55.32958,142.78,142.67,4.0]
[1641694160755,55.32958,142.78,142.67,12.402]
[1641694161357,55.32958,142.78,142.67,8.402]
[1641694161555,55.32958,142.78,142.67,12.402]
[1641694161758,55.32958,142.78,142.7,27.66479]
[1641694164259,55.32958,142.78,142.67,8.402]
[1641694164458,62.55258,142.78,142.65,27.66479]
[1641694164658,66.55258,142.78,142.65,27.66479]
[1641694165059,62.55258,142.78,142.65,27.66479]
[1641694165259,4.0,142.77,142.65,27.66479]
[1641694165459,1.751,142.76,142.65,27.66479]
[1641694165860,27.66479,142.7,142.62,27.66479]
[1641694166060,35.26579,142.7,142.58,7.01016474]
[1641694166863,35.26579,142.7,142.59,2.69114674]
[1641694167963,27.66479,142.67,142.59,2.69114674]
[1641694168964,27.66479,142.7,142.62,7.00844518]
[1641694169765,27.66479,142.7,142.63,2.69114674]
[1641694170765,27.66479,142.7,142.62,2.69114674]
[1641694170965,1.752,142.69,142.62,2.69114674]
[1641694171566,1.752,142.69,142.61,10.46278583]
[1641694171767,1.752,142.69,142.6,2.69114674]
[1641694171967,27.66479,142.66,142.6,2.69114674]
[1641694173064,4.0,142.65,142.6,2.69114674]
[1641694173268,5.752,142.64,142.57,15.52472285]
[1641694173467,11.555,142.64,142.57,15.52472285]
[1641694173666,18.57008243,142.64,142.55,89.0]
[1641694173868,27.66479,142.6,142.53,59.50747892]
[1641694174067,33.89479,142.6,142.53,59.50747892]
[1641694174367,33.89479,142.6,142.49,33.27898862]
[1641694175570,33.89479,142.6,142.49,37.27898862]
[1641694175770,6.23,142.6,142.54,4.0]
[1641694175970,67.1098,142.64,142.54,4.0]
[1641694176169,67.1098,142.64,142.54,12.205]
[1641694176372,67.1098,142.64,142.54,8.205]
[1641694177172,73.1098,142.64,142.54,8.205]
[1641694177471,73.1098,142.64,142.51,7.0136064]
[1641694178073,27.66479,142.61,142.52,27.66479]
[1641694181678,35.45679,142.61,142.52,27.66479]
[1641694182079,27.66479,142.57,142.49,34.67938035]
[1641694182282,36.02579,142.57,142.49,27.66479]
[1641694182680,37.77979,142.57,142.45,27.66479]
[1641694183081,41.77979,142.57,142.45,27.66479]
[1641694183482,37.77979,142.57,142.45,27.66479]
[1641694184084,27.66479,142.54,142.45,27.66479]
[1641694184684,27.66479,142.57,142.48,11.01508243]
[1641694184887,27.66479,142.57,142.48,19.68108243]
[1641694185085,27.66479,142.57,142.48,15.68108243]
[1641694191993,27.66479,142.57,142.48,7.01508243]
[1641694192193,27.66479,142.54,142.48,7.01508243]
[1641694193895,27.66479,142.54,142.46,7.01631293]
[1641694194095,34.92979,142.54,142.46,32.97479834]
[1641694194296,34.92979,142.54,142.46,25.95848541]
[1641694194695,34.92979,142.54,142.46,10.47329864]
[1641694194896,34.92979,142.54,142.44,10.47329864]
[1641694195497,27.66479,142.54,142.44,10.47329864]
[1641694195895,27.66479,142.54,142.43,7.01754386]
[1641694195896,27.66479,142.54,142.43,17.4908425]
[1641694196097,1.754,142.53,142.43,17.4908425]
[1641694196897,33.66479,142.57,142.45,4.0]
[1641694197096,6.0,142.57,142.48,7.01508243]
[1641694197297,6.0,142.57,142.48,12.70408243]
[1641694197498,6.0,142.57,142.51,7.01385236]
[1641694197697,6.0,142.57,142.51,14.61985236]
[1641694198099,10.0,142.57,142.49,7.01483638]
[1641694198300,27.66479,142.56,142.46,27.66479]
[1641694198697,27.66479,142.56,142.49,10.47329864]
[1641694199898,27.66479,142.56,142.46,38.13808864]
[1641694200098,97.37869,142.56,142.46,38.13808864]
[1641694201902,101.37869,142.56,142.46,38.13808864]
[1641694202301,97.37869,142.56,142.46,38.13808864]
[1641694203602,101.37869,142.56,142.46,38.13808864]
[1641694203802,97.37869,142.56,142.46,38.13808864]
[1641694207004,27.66479,142.56,142.46,38.13808864]
[1641694207205,6.0,142.57,142.49,7.01483638]
[1641694207407,6.0,142.57,142.46,38.13808864]
[1641694207606,6.0,142.57,142.47,7.01582068]
[1641694208207,11.754,142.57,142.47,7.01582068]
[1641694208408,27.66479,142.54,142.47,7.01582068]
[1641694208610,4.0,142.52,142.46,10.47329864]
[1641694208808,4.0,142.52,142.47,10.47329864]
[1641694209008,4.0,142.5,142.47,10.47329864]
[1641694209209,10.093,142.5,142.47,10.47329864]
[1641694209410,6.093,142.5,142.47,10.47329864]
[1641694209909,10.093,142.5,142.47,10.47329864]
[1641694210111,4.0,142.49,142.44,59.50747892]
[1641694210311,27.66479,142.47,142.43,10.47329864]
[1641694210510,34.01379,142.47,142.43,10.47329864]
[1641694211112,34.01379,142.47,142.4,10.47329864]
[1641694211711,4.0,142.43,142.4,10.47329864]
[1641694211911,9.443,142.43,142.4,10.47329864]
[1641694212111,5.443,142.43,142.38,15.53590149]
[1641694212513,27.66479,142.41,142.38,15.53590149]
[1641694213914,4.0,142.39,142.33,15.53590149]
[1641694214113,8.628,142.39,142.33,15.53590149]
[1641694214513,27.66479,142.37,142.33,15.53590149]
[1641694215113,27.66479,142.37,142.3,62.20743659]
[1641694215313,27.66479,142.37,142.3,2.69995767]
[1641694216216,70.2013,142.4,142.3,2.69995767]
[1641694216414,27.66479,142.41,142.35,7.02173226]
[1641694216614,27.66479,142.45,142.38,4.0]
[1641694216814,145.2817651,142.48,142.38,11.081]
[1641694217214,145.2817651,142.48,142.38,7.081]
[1641694217816,149.2817651,142.48,142.39,2.69995767]
[1641694218417,27.66479,142.45,142.39,2.69995767]
[1641694218617,27.66479,142.45,142.36,2.69995767]
[1641694218820,4.0,142.43,142.36,2.69995767]
[1641694219019,4.0,142.41,142.36,2.69995767]
[1641694219217,6.217,142.43,142.36,2.69995767]
[1641694219820,10.217,142.43,142.36,2.69995767]
[1641694220322,10.217,142.43,142.32,2.69995767]
[1641694220524,27.66479,142.4,142.32,2.69995767]
[1641694221922,27.66479,142.4,142.33,7.02247191]
[1641694222122,27.66479,142.4,142.34,7.02197879]
[1641694222325,27.66479,142.45,142.34,7.02197879]
[1641694222523,4.0,142.43,142.34,7.02197879]
[1641694222727,1.754,142.44,142.32,2.69995767]
[1641694222924,4.0,142.4,142.35,2.69995767]
[1641694223125,7.152,142.4,142.35,2.69995767]
[1641694224026,7.152,142.4,142.28,98.4119334]
[1641694224027,11.152,142.4,142.32,2.69995767]
[1641694224225,1.756,142.39,142.32,2.69995767]
[1641694224425,7.152,142.4,142.32,2.69995767]
[1641694224625,1.756,142.47,142.34,20.0]
[1641694224828,1.756,142.47,142.37,4.0]
[1641694225026,6.0,142.4,142.37,9.794]
[1641694225226,66.2018,142.49,142.39,11.01926789]
[1641694225429,66.2018,142.49,142.4,4.0]
[1641694225626,66.2018,142.49,142.4,6.216]
[1641694226627,27.66479,142.46,142.4,6.216]
[1641694226827,33.08979,142.46,142.37,27.66479]
[1641694227727,33.08979,142.46,142.38,2.6859284]
[1641694228329,34.84379,142.46,142.38,2.6859284]
[1641694228527,27.66479,142.4,142.38,2.6859284]
[1641694228730,34.33779,142.4,142.38,2.6859284]
[1641694229528,34.33779,142.4,142.32,2.6859284]
[1641694231331,70.1078,142.42,142.32,2.6859284]
[1641694231531,70.1078,142.42,142.32,10.2219284]
[1641694232633,27.66479,142.4,142.32,10.2219284]
[1641694232834,35.17279,142.4,142.33,2.6859284]
[1641694233735,35.17279,142.4,142.32,2.6859284]
[1641694234535,27.66479,142.34,142.32,2.6859284]
[1641694234735,33.63779,142.34,142.32,2.6859284]
[1641694235235,5.973,142.34,142.32,2.6859284]
[1641694235434,5.973,142.34,142.3,10.46126855]
[1641694235435,5.973,142.34,142.29,2.6859284]
[1641694235939,27.66479,142.4,142.29,2.6859284]
[1641694236339,31.66479,142.4,142.29,2.6859284]
[1641694236540,4.0,142.38,142.29,13.14719695]
[1641694236741,1.756,142.39,142.29,13.14719695]
[1641694236943,4.0,142.36,142.29,13.14719695]
[1641694237143,4.0,142.35,142.29,13.14719695]
[1641694237342,4.0,142.38,142.29,13.14719695]
[1641694237544,5.756,142.37,142.29,13.14719695]
[1641694237744,1.756,142.37,142.29,13.14719695]
[1641694237945,1.756,142.37,142.26,13.14719695]
[1641694238145,69.2978,142.37,142.26,13.14719695]
[1641694238344,4.0,142.35,142.26,13.14719695]
[1641694238746,27.66479,142.33,142.26,13.14719695]
[1641694239352,27.66479,142.33,142.26,28.66922178]
[1641694239550,66.2842,142.36,142.26,28.66922178]
[1641694239748,1.756,142.39,142.32,7.02321171]
[1641694239948,5.515,142.43,142.32,13.09221171]
[1641694240247,5.515,142.43,142.32,17.09221171]
[1641694240449,5.515,142.43,142.32,10.069]
[1641694240649,33.17979,142.43,142.33,34.68750849]
[1641694240850,33.17979,142.43,142.33,27.66479]
[1641694241249,4.0,142.41,142.33,27.66479]
[1641694241449,10.0,142.42,142.33,30.3507184]
[1641694241648,4.0,142.39,142.33,2.6859284]
[1641694241848,10.539,142.39,142.33,2.6859284]
[1641694242548,10.539,142.39,142.32,2.6859284]
[1641694242748,27.66479,142.37,142.32,2.6859284]
[1641694243349,27.66479,142.37,142.31,2.6859284]
[1641694244754,55.32958,142.37,142.31,2.6859284]
[1641694245154,4.0,142.36,142.28,13.14719695]
[1641694245354,9.796,142.36,142.28,13.14719695]
[1641694246055,5.796,142.36,142.28,13.14719695]
[1641694246455,55.32958,142.37,142.28,13.14719695]
[1641694246656,27.66479,142.32,142.28,13.14719695]
[1641694247659,69.5842,142.36,142.26,4.0]
[1641694247857,69.5842,142.36,142.27,7.02543206]
[1641694248057,27.66479,142.37,142.27,7.02543206]
[1641694248257,27.66479,142.37,142.29,7.02444507]
[1641694248457,147.2508,142.42,142.3,4.0]
[1641694248657,173.15959,142.42,142.32,27.66479]
[1641694248858,173.15959,142.42,142.32,34.99479]
[1641694249458,173.15959,142.42,142.33,2.6859284]
[1641694249459,4.0,142.41,142.33,2.6859284]
[1641694249662,1.754,142.41,142.33,2.6859284]
[1641694249859,173.15959,142.42,142.33,2.6859284]
[1641694250462,173.15959,142.42,142.3,13.14719695]
[1641694250663,177.15959,142.42,142.32,8.57]
[1641694251160,177.15959,142.42,142.33,2.6859284]
[1641694251365,4.0,142.41,142.33,2.6859284]
[1641694251563,4.0,142.4,142.33,2.6859284]
[1641694251761,4.0,142.39,142.33,2.6859284]
[1641694251961,13.523,142.41,142.33,2.6859284]
[1641694252163,9.523,142.41,142.3,13.14719695]
[1641694252661,27.66479,142.39,142.3,20.17114863]
[1641694253062,27.66479,142.39,142.3,35.7032311]
[1641694253462,27.66479,142.39,142.3,28.67927942]
[1641694253862,27.66479,142.39,142.3,13.14719695]
[1641694254062,27.66479,142.39,142.31,2.6859284]
[1641694254864,27.66479,142.39,142.3,13.14719695]
[1641694255163,31.66479,142.39,142.3,28.67993926]
[1641694255365,37.96979,142.39,142.3,28.67993926]
[1641694256769,65.63458,142.39,142.3,28.67993926]
[1641694256970,61.63458,142.39,142.3,28.67993926]
[1641694257171,61.63458,142.39,142.29,28.67993926]
[1641694257572,65.63458,142.39,142.29,28.67993926]
[1641694257972,61.63458,142.39,142.29,28.67993926]
[1641694258471,65.63458,142.39,142.29,28.67993926]
[1641694259572,61.63458,142.39,142.29,28.67993926]
[1641694259775,1.756,142.41,142.34,7.02197879]
[1641694259973,6.0,142.42,142.35,7.02148575]
[1641694260176,14.69980224,142.45,142.35,7.02148575]
[1641694260375,14.69980224,142.45,142.34,28.388]
[1641694260376,14.69980224,142.45,142.4,11.01606679]
[1641694260575,37.17500232,142.51,142.44,7.01508243]
[1641694260774,21.77500232,142.51,142.5,62.34294045]
[1641694260975,96.0860673,142.6,142.5,69.72194045]
[1641694261178,56.0860673,142.6,142.54,28.04262479]
[1641694261383,33.1860673,142.6,142.59,7.00918203]
[1641694261576,120.10758413,142.64,142.59,7.00918203]
[1641694261577,110.42758413,142.64,142.59,13.70846295]
[1641694261873,143.29104952,142.7,142.63,7.00599012]
[1641694262074,99.27319413,142.74,142.69,7.00451791]
[1641694262387,99.27319413,142.74,142.7,7.00427261]
[1641694262573,86.67319413,142.74,142.73,7.00182047]
[1641694262774,86.67319413,142.74,142.73,44.27561047]
[1641694262972,80.93319413,142.74,142.73,44.27561047]
[1641694263173,79.49319413,142.74,142.73,40.27561047]
[1641694263373,2.22951271,142.82,142.73,64.27561047]
[1641694263575,2.22951271,142.82,142.74,1.75]
[1641694263974,4.0,142.81,142.74,1.75]
[1641694264174,4.0,142.81,142.72,7.00353679]
[1641694264773,27.66479,142.8,142.71,27.66479]
[1641694264977,27.66479,142.8,142.72,7.00329155]
[1641694265777,31.66479,142.8,142.72,7.00329155]
[1641694265977,27.66479,142.8,142.75,7.00182047]
[1641694266177,27.66479,142.86,142.75,14.33182047]
[1641694266779,27.66479,142.82,142.75,14.33182047]
[1641694266978,27.66479,142.82,142.75,7.33]
[1641694267178,4.0,142.8,142.71,27.66479]
[1641694267380,4.0,142.79,142.69,7.00476324]
[1641694267681,4.0,142.8,142.64,1.75]
[1641694267879,10.316,142.79,142.67,7.00574471]
[1641694268481,10.316,142.79,142.7,7.00427261]
[1641694268882,27.66479,142.75,142.7,7.00427261]
[1641694269282,27.66479,142.75,142.67,34.67053471]
[1641694269482,27.66479,142.75,142.67,27.66479]
[1641694269782,27.66479,142.75,142.68,7.00549932]
[1641694269984,27.66479,142.75,142.7,7.00427261]
[1641694270586,27.66479,142.75,142.67,27.66479]
[1641694270884,27.66479,142.72,142.67,27.66479]
[1641694271083,35.86579,142.72,142.67,27.66479]
[1641694272686,27.66479,142.72,142.66,7.00623555]
[1641694273286,27.66479,142.72,142.65,27.66479]
[1641694273685,36.12479,142.72,142.65,27.66479]
[1641694274887,36.12479,142.72,142.64,7.00746295]
[1641694276688,8.46,142.72,142.64,7.00746295]
[1641694276888,33.83079,142.75,142.64,7.00746295]
[1641694277088,27.66479,142.75,142.64,7.00746295]
[1641694277487,31.66479,142.75,142.64,7.00746295]
[1641694277689,4.0,142.74,142.64,7.00746295]
[1641694277988,27.66479,142.75,142.64,7.00746295]
[1641694278288,4.0,142.71,142.62,1.752]
[1641694278488,7.033,142.71,142.6,27.66479]
[1641694278888,7.033,142.71,142.6,34.67397203]
[1641694279088,27.66479,142.7,142.6,34.67397203]
[1641694281789,33.66479,142.7,142.6,34.67397203]
[1641694283589,6.0,142.7,142.63,7.00795403]
[1641694283790,6.0,142.7,142.64,1.752]
[1641694283990,6.0,142.7,142.66,7.00623555]
[1641694284190,6.0,142.7,142.66,6.267]
[1641694285293,6.0,142.7,142.65,7.00672646]
[1641694285491,6.0,142.7,142.66,7.594]
[1641694285891,6.0,142.7,142.64,35.02526996]
[1641694286191,14.423,142.7,142.61,1.752]
[1641694286391,14.423,142.7,142.6,55.69562392]
[1641694286592,18.423,142.7,142.6,27.66479]
[1641694286992,14.423,142.7,142.6,27.66479]
[1641694287192,42.08779,142.7,142.6,34.67397203]
[1641694287393,42.08779,142.7,142.6,27.66479]
[1641694288196,6.0,142.7,142.64,7.00721743]
[1641694288496,6.0,142.7,142.66,4.0]
[1641694288696,6.0,142.7,142.67,7.00574471]
[1641694288896,7.00574471,142.83,142.69,24.0]
[1641694289096,31.66479,142.84,142.74,27.66479]